[Event "Live Chess"]
[Site "Chess.com"]
[Date "2024.06.01"]
[Round "-"]
[White "A3ndrey9"]
[Black "Bob2pen"]
[Result "0-1"]
[WhiteElo "1258"]
[BlackElo "1820"]
[TimeControl "300"]
[EndTime "10:13:20 PDT"]
[Termination "Bob2pen won by checkmate"]

1. Nf3 {[%clk 0:04:57.5]} 1... Nf6 {[%clk 0:04:58.5]} 2. c4 {[%clk 0:04:46.2]}
2... g6 {[%clk 0:04:55.2]} 3. d4 {[%clk 0:04:45.5]} 3... Bg7 {[%clk 0:04:54]} 4.
g3 {[%clk 0:04:45.1]} 4... O-O {[%clk 0:04:52.9]} 5. Bg2 {[%clk 0:04:44.7]} 5...
c5 {[%clk 0:04:52.1]} 6. dxc5 {[%clk 0:04:42.2]} 6... Na6 {[%clk 0:04:50.5]} 7.
Nc3 {[%clk 0:04:41.2]} 7... Nxc5 {[%clk 0:04:49]} 8. O-O {[%clk 0:04:37.1]} 8...
Rb8 {[%clk 0:04:48]} 9. Bf4 {[%clk 0:04:35.8]} 9... d6 {[%clk 0:04:46.2]} 10.
Re1 {[%clk 0:04:33.2]} 10... b6 {[%clk 0:04:44.9]} 11. Qc2 {[%clk 0:04:32.3]}
11... Bb7 {[%clk 0:04:43.2]} 12. e4 {[%clk 0:04:28.9]} 12... Ne6 {[%clk
0:04:41.2]} 13. Bg5 {[%clk 0:04:06.1]} 13... Nxg5 {[%clk 0:04:35.8]} 14. Nxg5
{[%clk 0:04:06]} 14... Qc7 {[%clk 0:04:34.9]} 15. Nd5 {[%clk 0:03:52.8]} 15...
Nxd5 {[%clk 0:04:20.1]} 16. exd5 {[%clk 0:03:50.1]} 16... Rbc8 {[%clk
0:04:18.5]} 17. Rac1 {[%clk 0:03:41.7]} 17... Qc5 {[%clk 0:04:05.2]} 18. Bh3
{[%clk 0:03:36.3]} 18... Rc7 {[%clk 0:04:00.9]} 19. b3 {[%clk 0:03:29.5]} 19...
Bxd5 {[%clk 0:03:58.1]} 20. cxd5 {[%clk 0:03:26]} 20... Qxc2 {[%clk 0:03:56.8]}
21. Rxc2 {[%clk 0:03:22.8]} 21... Rxc2 {[%clk 0:03:55.4]} 22. Rxe7 {[%clk
0:03:20.8]} 22... Rxa2 {[%clk 0:03:53]} 23. Rd7 {[%clk 0:03:05.1]} 23... Bd4
{[%clk 0:03:47.8]} 24. Ne4 {[%clk 0:02:51.1]} 24... f5 {[%clk 0:03:43.1]} 25.
Ng5 {[%clk 0:02:16.8]} 25... Rxf2 {[%clk 0:03:36.5]} 26. Kh1 {[%clk 0:02:15.8]}
26... Rc8 {[%clk 0:03:28.8]} 27. Rg7+ {[%clk 0:00:21.5]} 27... Kxg7 {[%clk
0:03:23]} 28. Ne6+ {[%clk 0:00:21]} 28... Kf6 {[%clk 0:03:20.5]} 29. Nxd4 {[%clk
0:00:08.9]} 29... Rc1+ {[%clk 0:03:18]} 30. Bf1 {[%clk 0:00:06.7]} 30... Rcxf1#
{[%clk 0:03:16.4]} 0-1

[Event "Live Chess"]
[Site "Chess.com"]
[Date "2024.06.01"]
[Round "-"]
[White "booktrunk"]
[Black "hapehansen"]
[Result "0-1"]
[WhiteElo "1387"]
[BlackElo "2243"]
[TimeControl "300"]
[EndTime "10:13:39 PDT"]
[Termination "hapehansen won by resignation"]

1. d4 {[%clk 0:04:55.4]} 1... Nf6 {[%clk 0:04:57.6]} 2. Nc3 {[%clk 0:04:53]}
2... d5 {[%clk 0:04:56]} 3. Bf4 {[%clk 0:04:49.1]} 3... a6 {[%clk 0:04:52]} 4.
Nf3 {[%clk 0:04:45.2]} 4... e6 {[%clk 0:04:50.8]} 5. e3 {[%clk 0:04:41.9]} 5...
Bb4 {[%clk 0:04:47.4]} 6. Bd3 {[%clk 0:04:35.9]} 6... Nbd7 {[%clk 0:04:38.7]} 7.
O-O {[%clk 0:04:33.8]} 7... c5 {[%clk 0:04:30.1]} 8. dxc5 {[%clk 0:04:31.4]}
8... Nxc5 {[%clk 0:04:28.2]} 9. Be2 {[%clk 0:04:20.9]} 9... Bxc3 {[%clk
0:04:12.3]} 10. bxc3 {[%clk 0:04:19]} 10... O-O {[%clk 0:04:09.3]} 11. Nd4
{[%clk 0:04:17.4]} 11... Nce4 {[%clk 0:04:03.8]} 12. Qd3 {[%clk 0:04:11.2]}
12... Qe7 {[%clk 0:03:54.9]} 13. Qd1 {[%clk 0:04:11.1]} 13... e5 {[%clk
0:03:44.5]} 14. Qd3 {[%clk 0:04:11]} 14... exf4 {[%clk 0:03:39.3]} 0-1

[Event "Live Chess"]
[Site "Chess.com"]
[Date "2024.06.01"]
[Round "-"]
[White "NeilDruggan73"]
[Black "TheSmoulderingMaster"]
[Result "1-0"]
[WhiteElo "1758"]
[BlackElo "1731"]
[TimeControl "300"]
[EndTime "10:13:46 PDT"]
[Termination "NeilDruggan73 won by resignation"]

1. d4 {[%clk 0:04:56.1]} 1... Nf6 {[%clk 0:04:58.8]} 2. Bg5 {[%clk 0:04:53]}
2... Ne4 {[%clk 0:04:57.2]} 3. h4 {[%clk 0:04:48.6]} 3... c6 {[%clk 0:04:55.8]}
4. Nd2 {[%clk 0:04:45.5]} 4... Nxg5 {[%clk 0:04:53.4]} 5. hxg5 {[%clk
0:04:43.3]} 5... Qa5 {[%clk 0:04:52.5]} 6. Nf3 {[%clk 0:04:35.2]} 6... d5 {[%clk
0:04:50.3]} 7. e4 {[%clk 0:04:22.6]} 7... dxe4 {[%clk 0:04:47.8]} 8. Ne5 {[%clk
0:04:15.2]} 8... e3 {[%clk 0:04:38.8]} 9. fxe3 {[%clk 0:04:11]} 9... Nd7 {[%clk
0:04:37]} 10. Nf3 {[%clk 0:03:52.4]} 10... e5 {[%clk 0:04:33]} 11. g6 {[%clk
0:03:42.6]} 11... fxg6 {[%clk 0:04:30.2]} 12. Bd3 {[%clk 0:03:30.9]} 12... exd4
{[%clk 0:04:25.2]} 13. Bxg6+ {[%clk 0:03:28.1]} 13... Kd8 {[%clk 0:04:21.7]} 14.
Nxd4 {[%clk 0:03:23.3]} 14... Ne5 {[%clk 0:04:11.9]} 15. Bf7 {[%clk 0:03:08]}
15... Nxf7 {[%clk 0:04:08.4]} 16. Qf3 {[%clk 0:03:00.4]} 16... Ne5 {[%clk
0:03:58.4]} 17. Qg3 {[%clk 0:02:50.5]} 17... Nc4 {[%clk 0:03:47.1]} 18. O-O-O
{[%clk 0:02:30.6]} 18... Qxa2 {[%clk 0:03:37.3]} 19. Nxc4 {[%clk 0:02:27]} 19...
Qxc4 {[%clk 0:03:35.8]} 20. Nxc6+ {[%clk 0:02:11.7]} 20... Ke8 {[%clk
0:03:27.8]} 21. Rd8+ {[%clk 0:02:01.7]} 21... Kf7 {[%clk 0:03:26.6]} 22. Ne5+
{[%clk 0:01:49]} 1-0

[Event "Live Chess"]
[Site "Chess.com"]
[Date "2024.06.01"]
[Round "-"]
[White "AnotherOneBadPlayer"]
[Black "Bradfield133"]
[Result "1-0"]
[WhiteElo "2171"]
[BlackElo "2025"]
[TimeControl "300"]
[EndTime "10:13:47 PDT"]
[Termination "AnotherOneBadPlayer won on time"]

1. Nf3 {[%clk 0:04:58]} 1... c5 {[%clk 0:04:57.3]} 2. b3 {[%clk 0:04:54.5]} 2...
d6 {[%clk 0:04:49]} 3. Bb2 {[%clk 0:04:52.3]} 3... Nh6 {[%clk 0:04:32.6]} 4. e3
{[%clk 0:04:46.6]} 4... f5 {[%clk 0:04:31.2]} 5. Be2 {[%clk 0:04:39.8]} 5... e5
{[%clk 0:04:28.4]} 6. O-O {[%clk 0:04:19.9]} 6... Be7 {[%clk 0:04:23.9]} 7. c4
{[%clk 0:04:00.1]} 7... O-O {[%clk 0:04:19.1]} 8. Nc3 {[%clk 0:03:56.7]} 8...
Nd7 {[%clk 0:04:10.6]} 9. Nd5 {[%clk 0:03:52.7]} 9... Nf6 {[%clk 0:04:07.1]} 10.
d3 {[%clk 0:03:36]} 10... Nxd5 {[%clk 0:03:54.2]} 11. cxd5 {[%clk 0:03:34.5]}
11... Bf6 {[%clk 0:03:53]} 12. Qc2 {[%clk 0:03:27.5]} 12... b6 {[%clk
0:03:38.9]} 13. Nd2 {[%clk 0:03:17.6]} 13... Bb7 {[%clk 0:03:06.9]} 14. e4
{[%clk 0:03:12.3]} 14... f4 {[%clk 0:02:59.7]} 15. f3 {[%clk 0:03:09.7]} 15...
g5 {[%clk 0:02:52.5]} 16. a4 {[%clk 0:02:51.3]} 16... a6 {[%clk 0:02:43.1]} 17.
Nc4 {[%clk 0:02:45.5]} 17... Kh8 {[%clk 0:02:32.6]} 18. Qd2 {[%clk 0:02:27.5]}
18... Qc7 {[%clk 0:02:04.6]} 19. b4 {[%clk 0:02:22.2]} 19... Rg8 {[%clk
0:01:50.6]} 20. h3 {[%clk 0:02:03.3]} 20... Nf7 {[%clk 0:01:43.9]} 21. a5 {[%clk
0:01:49.2]} 21... b5 {[%clk 0:01:37.8]} 22. Nb6 {[%clk 0:01:46.8]} 22... Raf8
{[%clk 0:00:57.7]} 23. Rac1 {[%clk 0:01:39.6]} 23... Be7 {[%clk 0:00:53.3]} 24.
d4 {[%clk 0:01:33.9]} 24... h5 {[%clk 0:00:20.5]} 25. bxc5 {[%clk 0:01:28.7]}
25... Qd8 {[%clk 0:00:00.5]} 26. c6 {[%clk 0:01:24.7]} 1-0

[Event "Live Chess"]
[Site "Chess.com"]
[Date "2024.06.01"]
[Round "-"]
[White "jimwad"]
[Black "MaximKhimchenko"]
[Result "1-0"]
[WhiteElo "1261"]
[BlackElo "1785"]
[TimeControl "300"]
[EndTime "10:14:13 PDT"]
[Termination "jimwad won by resignation"]

1. d4 {[%clk 0:04:59.4]} 1... d5 {[%clk 0:04:57.6]} 2. c4 {[%clk 0:04:58.6]}
2... e6 {[%clk 0:04:57.1]} 3. Nc3 {[%clk 0:04:57.4]} 3... Nf6 {[%clk 0:04:56.4]}
4. Bg5 {[%clk 0:04:56.2]} 4... Bb4 {[%clk 0:04:53.8]} 5. a3 {[%clk 0:04:55]}
5... Bxc3+ {[%clk 0:04:51.7]} 6. bxc3 {[%clk 0:04:54.1]} 6... h6 {[%clk
0:04:49.8]} 7. Bh4 {[%clk 0:04:51.9]} 7... g5 {[%clk 0:04:47.3]} 8. Bg3 {[%clk
0:04:50.9]} 8... Ne4 {[%clk 0:04:46.4]} 9. Qd3 {[%clk 0:04:46.7]} 9... c6 {[%clk
0:04:42.5]} 10. e3 {[%clk 0:04:42.3]} 10... Nd7 {[%clk 0:04:38.8]} 11. Nf3
{[%clk 0:04:35.6]} 11... Nb6 {[%clk 0:04:36.9]} 12. c5 {[%clk 0:04:33.7]} 12...
Nc4 {[%clk 0:04:30.9]} 13. Ne5 {[%clk 0:04:30.2]} 13... Nxe5 {[%clk 0:04:24.7]}
14. Bxe5 {[%clk 0:04:27.6]} 14... f6 {[%clk 0:04:23.6]} 15. Bg3 {[%clk
0:04:19.3]} 15... Qa5 {[%clk 0:04:21.8]} 16. f3 {[%clk 0:04:01.2]} 16... Qxc3+
{[%clk 0:04:17.2]} 17. Qxc3 {[%clk 0:03:58.7]} 17... Nxc3 {[%clk 0:04:17.1]} 18.
Kd2 {[%clk 0:03:41.9]} 18... Nb5 {[%clk 0:04:14.3]} 19. a4 {[%clk 0:03:40.2]}
19... Nxd4 {[%clk 0:04:06.1]} 20. exd4 {[%clk 0:03:38.8]} 20... Kf7 {[%clk
0:04:04.3]} 21. Bd3 {[%clk 0:03:28]} 21... b6 {[%clk 0:04:00.8]} 22. cxb6 {[%clk
0:03:26.4]} 22... axb6 {[%clk 0:04:00.7]} 23. Rhb1 {[%clk 0:03:23.6]} 23... Ba6
{[%clk 0:03:52.6]} 24. Rxb6 {[%clk 0:03:19.3]} 24... Bxd3 {[%clk 0:03:46.8]} 25.
Kxd3 {[%clk 0:03:17.5]} 25... Rhc8 {[%clk 0:03:42.9]} 26. a5 {[%clk 0:03:13.4]}
26... f5 {[%clk 0:03:30.5]} 27. Be5 {[%clk 0:03:09.9]} 27... Kg6 {[%clk
0:03:27.5]} 28. g4 {[%clk 0:03:04.6]} 1-0

[Event "Live Chess"]
[Site "Chess.com"]
[Date "2024.06.01"]
[Round "-"]
[White "SavagePawn7"]
[Black "OliWally08"]
[Result "0-1"]
[WhiteElo "684"]
[BlackElo "1259"]
[TimeControl "300"]
[EndTime "10:14:49 PDT"]
[Termination "OliWally08 won by resignation"]

1. e4 {[%clk 0:04:55.2]} 1... d5 {[%clk 0:04:58.9]} 2. exd5 {[%clk 0:04:51.3]}
2... Nf6 {[%clk 0:04:57.6]} 3. d4 {[%clk 0:04:44.1]} 3... Nxd5 {[%clk
0:04:55.3]} 4. c4 {[%clk 0:04:41.7]} 4... Nf6 {[%clk 0:04:49.3]} 5. Nf3 {[%clk
0:04:38.3]} 5... Bg4 {[%clk 0:04:44.2]} 6. Nc3 {[%clk 0:04:35]} 6... Nc6 {[%clk
0:04:39.6]} 7. d5 {[%clk 0:04:30.5]} 7... Ne5 {[%clk 0:04:37.4]} 8. h3 {[%clk
0:04:23.8]} 8... Nxf3+ {[%clk 0:04:35.5]} 9. gxf3 {[%clk 0:04:19.4]} 9... Bf5
{[%clk 0:04:30.1]} 10. Bd3 {[%clk 0:04:13.6]} 10... Bxd3 {[%clk 0:04:26.8]} 11.
Qxd3 {[%clk 0:04:12.3]} 11... e6 {[%clk 0:04:24.6]} 12. Bg5 {[%clk 0:03:59.4]}
12... Be7 {[%clk 0:04:10.9]} 13. Bxf6 {[%clk 0:03:52.8]} 13... Bxf6 {[%clk
0:04:09.2]} 14. O-O-O {[%clk 0:03:48.7]} 14... exd5 {[%clk 0:03:58.3]} 15. Nxd5
{[%clk 0:03:43.7]} 15... O-O {[%clk 0:03:52]} 16. Rhg1 {[%clk 0:03:23.6]} 16...
c6 {[%clk 0:03:40.8]} 17. Nxf6+ {[%clk 0:03:10.9]} 17... Qxf6 {[%clk 0:03:40.7]}
18. Qe2 {[%clk 0:02:44.1]} 18... Rfe8 {[%clk 0:03:34]} 19. Qd3 {[%clk
0:02:39.6]} 19... Rad8 {[%clk 0:03:28.6]} 20. Rxg7+ {[%clk 0:02:25.3]} 20...
Kxg7 {[%clk 0:03:15.2]} 21. Qf1 {[%clk 0:02:18.8]} 21... Rxd1+ {[%clk
0:03:12.3]} 22. Qxd1 {[%clk 0:02:17.5]} 22... Qf4+ {[%clk 0:03:10.3]} 23. Kb1
{[%clk 0:02:15.5]} 23... Qf6 {[%clk 0:02:51]} 24. Qg1+ {[%clk 0:02:11.3]} 24...
Qg6+ {[%clk 0:02:50.3]} 0-1

[Event "Live Chess"]
[Site "Chess.com"]
[Date "2024.06.01"]
[Round "-"]
[White "NottheBishopSacrifice"]
[Black "Velocity"]
[Result "1-0"]
[WhiteElo "2175"]
[BlackElo "1720"]
[TimeControl "300"]
[EndTime "10:14:50 PDT"]
[Termination "NottheBishopSacrifice won by resignation"]

1. Nf3 {[%clk 0:04:58.2]} 1... Nf6 {[%clk 0:04:58.8]} 2. d4 {[%clk 0:04:57.5]}
2... g6 {[%clk 0:04:57.8]} 3. c4 {[%clk 0:04:57.4]} 3... Bg7 {[%clk 0:04:56.8]}
4. Nc3 {[%clk 0:04:57.3]} 4... d6 {[%clk 0:04:55.4]} 5. e4 {[%clk 0:04:57.2]}
5... O-O {[%clk 0:04:54.4]} 6. Be2 {[%clk 0:04:56.8]} 6... e5 {[%clk 0:04:53]}
7. O-O {[%clk 0:04:54.8]} 7... Nc6 {[%clk 0:04:51.8]} 8. d5 {[%clk 0:04:54]}
8... Ne7 {[%clk 0:04:51]} 9. Ne1 {[%clk 0:04:53.4]} 9... Ne8 {[%clk 0:04:49.8]}
10. Nd3 {[%clk 0:04:52.9]} 10... f5 {[%clk 0:04:48.8]} 11. f3 {[%clk 0:04:52.5]}
11... f4 {[%clk 0:04:47.4]} 12. Nf2 {[%clk 0:04:51.7]} 12... g5 {[%clk
0:04:45.7]} 13. b4 {[%clk 0:04:51.1]} 13... Ng6 {[%clk 0:04:44.6]} 14. c5 {[%clk
0:04:49.9]} 14... Rf7 {[%clk 0:04:42.9]} 15. Bb2 {[%clk 0:04:48.3]} 15... Bf8
{[%clk 0:04:41.8]} 16. cxd6 {[%clk 0:04:44.6]} 16... Nxd6 {[%clk 0:04:37.4]} 17.
Rc1 {[%clk 0:04:42.6]} 17... h5 {[%clk 0:04:35.6]} 18. Nb5 {[%clk 0:04:39]}
18... Rg7 {[%clk 0:04:30.6]} 19. Nxd6 {[%clk 0:04:37.4]} 19... cxd6 {[%clk
0:04:30.1]} 20. Qb3 {[%clk 0:04:34.2]} 20... g4 {[%clk 0:04:27.8]} 21. fxg4
{[%clk 0:04:32.6]} 21... hxg4 {[%clk 0:04:26.9]} 22. Bxg4 {[%clk 0:04:31.4]}
22... Bxg4 {[%clk 0:04:24.6]} 23. Nxg4 {[%clk 0:04:31.3]} 23... Qh4 {[%clk
0:04:23.7]} 24. h3 {[%clk 0:04:30.6]} 24... f3 {[%clk 0:04:18]} 25. Qxf3 {[%clk
0:04:27.7]} 25... Nf4 {[%clk 0:04:17.2]} 26. Rce1 {[%clk 0:04:17.8]} 26... Re8
{[%clk 0:03:48.5]} 27. Bc1 {[%clk 0:04:16]} 27... Rf7 {[%clk 0:03:44.2]} 28.
Bxf4 {[%clk 0:04:14.4]} 28... Rxf4 {[%clk 0:03:43.2]} 29. Qe2 {[%clk 0:04:11.2]}
29... Bh6 {[%clk 0:03:28.2]} 30. Rxf4 {[%clk 0:04:09.5]} 30... Bxf4 {[%clk
0:03:26.1]} 31. Rf1 {[%clk 0:04:08.9]} 31... Re7 {[%clk 0:03:13.6]} 32. Qf3
{[%clk 0:04:05.6]} 32... Rf7 {[%clk 0:03:07.9]} 33. g3 {[%clk 0:04:01.8]} 33...
Qxg3+ {[%clk 0:02:52.6]} 34. Qxg3 {[%clk 0:03:59.9]} 34... Bxg3 {[%clk 0:02:52]}
35. Rxf7 {[%clk 0:03:59.1]} 35... Kxf7 {[%clk 0:02:51.9]} 36. Kg2 {[%clk
0:03:58.4]} 36... Be1 {[%clk 0:02:46.9]} 37. b5 {[%clk 0:03:57.9]} 37... Bd2
{[%clk 0:02:40.3]} 38. a4 {[%clk 0:03:56.2]} 38... Bf4 {[%clk 0:02:34.6]} 39.
Kf3 {[%clk 0:03:55.5]} 39... Kg6 {[%clk 0:02:32.2]} 40. Ne3 {[%clk 0:03:52.4]}
40... Bg5 {[%clk 0:02:18.2]} 41. Nf5 {[%clk 0:03:51]} 41... Bd8 {[%clk
0:02:10.6]} 42. Nxd6 {[%clk 0:03:46.7]} 42... Kf6 {[%clk 0:02:06.1]} 43. Nxb7
{[%clk 0:03:45.3]} 43... Bb6 {[%clk 0:02:05]} 44. d6 {[%clk 0:03:44.4]} 44...
Ke6 {[%clk 0:02:03.4]} 45. h4 {[%clk 0:03:43.1]} 45... Kd7 {[%clk 0:02:02.5]}
46. h5 {[%clk 0:03:41.9]} 46... Kc8 {[%clk 0:02:02]} 47. h6 {[%clk 0:03:41.3]}
1-0

[Event "Live Chess"]
[Site "Chess.com"]
[Date "2024.06.01"]
[Round "-"]
[White "Crowded_House"]
[Black "jumush"]
[Result "1/2-1/2"]
[WhiteElo "1739"]
[BlackElo "1742"]
[TimeControl "300"]
[EndTime "10:14:52 PDT"]
[Termination "Game drawn by agreement"]

1. d4 {[%clk 0:04:56.6]} 1... d5 {[%clk 0:04:57.8]} 2. Bg5 {[%clk 0:04:55.8]}
2... c6 {[%clk 0:04:51.5]} 3. c3 {[%clk 0:04:52.4]} 3... h6 {[%clk 0:04:48.6]}
4. Bh4 {[%clk 0:04:48.5]} 4... Qb6 {[%clk 0:04:40.9]} 5. Qb3 {[%clk 0:04:45.8]}
5... Bf5 {[%clk 0:04:37.4]} 6. Nd2 {[%clk 0:04:40.9]} 6... Nd7 {[%clk
0:04:34.7]} 7. Ngf3 {[%clk 0:04:38.6]} 7... Ngf6 {[%clk 0:04:25.9]} 8. e3 {[%clk
0:04:36.3]} 8... e6 {[%clk 0:04:18.5]} 9. Be2 {[%clk 0:04:35]} 9... Bd6 {[%clk
0:04:16]} 10. Bg3 {[%clk 0:04:31.4]} 10... Bxg3 {[%clk 0:04:13]} 11. hxg3 {[%clk
0:04:31.1]} 11... O-O {[%clk 0:04:07.6]} 12. O-O {[%clk 0:04:15.7]} 12... Qxb3
{[%clk 0:04:05]} 13. Nxb3 {[%clk 0:04:13.7]} 13... a5 {[%clk 0:04:02.4]} 14.
Nbd2 {[%clk 0:03:56.8]} 14... b5 {[%clk 0:04:00]} 15. a3 {[%clk 0:03:53.9]}
15... b4 {[%clk 0:03:51]} 16. axb4 {[%clk 0:03:49.9]} 16... axb4 {[%clk
0:03:49]} 17. Nb3 {[%clk 0:03:43]} 17... bxc3 {[%clk 0:03:46.4]} 18. bxc3 {[%clk
0:03:42.3]} 18... Rab8 {[%clk 0:03:44.4]} 19. Na5 {[%clk 0:03:36.3]} 19... c5
{[%clk 0:03:38.4]} 20. Nc6 {[%clk 0:03:30.4]} 20... Rb6 {[%clk 0:03:30.5]} 21.
Nce5 {[%clk 0:03:21.4]} 21... cxd4 {[%clk 0:03:21.1]} 22. cxd4 {[%clk
0:03:17.3]} 22... Nxe5 {[%clk 0:03:14.7]} 23. Nxe5 {[%clk 0:03:15.7]} 23... Rfb8
{[%clk 0:03:06.7]} 24. Bd3 {[%clk 0:02:59.2]} 24... Bxd3 {[%clk 0:03:00.5]} 25.
Nxd3 {[%clk 0:02:57.7]} 25... Ne4 {[%clk 0:02:58.7]} 26. Nc5 {[%clk 0:02:52.4]}
26... Nxc5 {[%clk 0:02:54.6]} 27. dxc5 {[%clk 0:02:51.5]} 27... Rc6 {[%clk
0:02:49.2]} 28. Rfc1 {[%clk 0:02:46.9]} 28... Rbc8 {[%clk 0:02:46.7]} 29. Ra5
{[%clk 0:02:45.9]} 29... f6 {[%clk 0:02:44.6]} 30. Kf1 {[%clk 0:02:38.1]} 30...
e5 {[%clk 0:02:42.7]} 31. Ke2 {[%clk 0:02:32.6]} 31... Kf7 {[%clk 0:02:40.8]}
32. Ra7+ {[%clk 0:02:30.2]} 32... R8c7 {[%clk 0:02:37.8]} 33. Ra5 {[%clk
0:02:25.7]} 33... Ke6 {[%clk 0:02:35.5]} 34. f3 {[%clk 0:02:24.3]} 34... g5
{[%clk 0:02:33.4]} 35. g4 {[%clk 0:02:21.6]} 35... f5 {[%clk 0:02:29.3]} 36.
gxf5+ {[%clk 0:02:19.6]} 36... Kxf5 {[%clk 0:02:26.6]} 37. g3 {[%clk 0:02:18.9]}
37... h5 {[%clk 0:02:24.9]} 38. Kf2 {[%clk 0:02:16.2]} 38... d4 {[%clk
0:02:04.5]} 39. exd4 {[%clk 0:02:14.7]} 39... exd4 {[%clk 0:02:03]} 40. Ke2
{[%clk 0:02:05.4]} 40... Ke5 {[%clk 0:02:01.3]} 41. Kd3 {[%clk 0:01:59.5]} 41...
Kd5 {[%clk 0:01:59.3]} 42. Ra4 {[%clk 0:01:50.1]} 1/2-1/2

[Event "Live Chess"]
[Site "Chess.com"]
[Date "2024.06.01"]
[Round "-"]
[White "LaupMiths"]
[Black "raimundklein"]
[Result "1-0"]
[WhiteElo "1835"]
[BlackElo "1572"]
[TimeControl "300"]
[EndTime "10:15:03 PDT"]
[Termination "LaupMiths won by checkmate"]

1. Nf3 {[%clk 0:04:54.5]} 1... Nf6 {[%clk 0:04:59]} 2. g3 {[%clk 0:04:53.6]}
2... g6 {[%clk 0:04:58.2]} 3. Bg2 {[%clk 0:04:52.1]} 3... Bg7 {[%clk 0:04:57.9]}
4. O-O {[%clk 0:04:51.2]} 4... O-O {[%clk 0:04:56.4]} 5. d4 {[%clk 0:04:49.9]}
5... d6 {[%clk 0:04:55.3]} 6. c4 {[%clk 0:04:48.4]} 6... Nc6 {[%clk 0:04:54.1]}
7. b3 {[%clk 0:04:45.6]} 7... a6 {[%clk 0:04:51.5]} 8. Bb2 {[%clk 0:04:43.7]}
8... Rb8 {[%clk 0:04:45.2]} 9. Ne1 {[%clk 0:04:33.6]} 9... Bd7 {[%clk
0:04:42.4]} 10. Nd2 {[%clk 0:04:29]} 10... b5 {[%clk 0:04:39.1]} 11. d5 {[%clk
0:04:08.9]} 11... Na5 {[%clk 0:04:26.8]} 12. Qc2 {[%clk 0:04:05.3]} 12... bxc4
{[%clk 0:04:24.3]} 13. bxc4 {[%clk 0:04:02.4]} 13... c5 {[%clk 0:04:18.4]} 14.
Nd3 {[%clk 0:03:57.9]} 14... Bf5 {[%clk 0:04:09.7]} 15. e4 {[%clk 0:03:53.7]}
15... Bd7 {[%clk 0:04:07.5]} 16. Rab1 {[%clk 0:03:50.2]} 16... Rb6 {[%clk
0:03:59.1]} 17. e5 {[%clk 0:03:39.6]} 17... Ng4 {[%clk 0:03:40.4]} 18. h3 {[%clk
0:03:22.6]} 18... Nxe5 {[%clk 0:03:32.7]} 19. Nxe5 {[%clk 0:03:15.4]} 19... dxe5
{[%clk 0:03:21.4]} 20. Bc3 {[%clk 0:03:13.1]} 20... Rxb1 {[%clk 0:03:13.7]} 21.
Rxb1 {[%clk 0:03:07]} 21... Qc7 {[%clk 0:03:11.6]} 22. Ne4 {[%clk 0:02:40.4]}
22... Nb7 {[%clk 0:03:08.8]} 23. Qb2 {[%clk 0:02:29.1]} 23... Nd6 {[%clk
0:03:06.9]} 24. Qa3 {[%clk 0:02:20.4]} 24... Bf5 {[%clk 0:03:01.8]} 25. f3
{[%clk 0:02:13.8]} 25... Qd7 {[%clk 0:02:58.3]} 26. g4 {[%clk 0:02:11]} 26...
Bxe4 {[%clk 0:02:50]} 27. fxe4 {[%clk 0:02:10.9]} 27... Nxc4 {[%clk 0:02:44.6]}
28. Qxa6 {[%clk 0:02:07.2]} 28... Ne3 {[%clk 0:02:34.6]} 29. Rb7 {[%clk
0:02:04.1]} 29... Qd6 {[%clk 0:02:20.8]} 30. Rb6 {[%clk 0:02:01.5]} 30... Qc7
{[%clk 0:02:16.5]} 31. Rc6 {[%clk 0:01:44.7]} 31... Qd7 {[%clk 0:02:09.9]} 32.
Rxc5 {[%clk 0:01:39.8]} 32... Rb8 {[%clk 0:02:05.3]} 33. Qc6 {[%clk 0:01:32.1]}
33... Rb1+ {[%clk 0:01:46.7]} 34. Kh2 {[%clk 0:01:26.4]} 34... Qa7 {[%clk
0:01:39.3]} 35. Qc8+ {[%clk 0:01:15.6]} 35... Bf8 {[%clk 0:01:38.1]} 36. Bxe5
{[%clk 0:01:12.3]} 36... Qxa2 {[%clk 0:01:33.5]} 37. Qxf8+ {[%clk 0:01:07.7]}
37... Kxf8 {[%clk 0:01:31.8]} 38. Rc8# {[%clk 0:01:06.2]} 1-0

[Event "Live Chess"]
[Site "Chess.com"]
[Date "2024.06.01"]
[Round "-"]
[White "Frankie_Badacsonyi"]
[Black "kylet1990"]
[Result "1-0"]
[WhiteElo "2445"]
[BlackElo "724"]
[TimeControl "300"]
[EndTime "10:15:06 PDT"]
[Termination "Frankie_Badacsonyi won by resignation"]

1. g3 {[%clk 0:04:58.8]} 1... e5 {[%clk 0:04:55.8]} 2. Bg2 {[%clk 0:04:58.7]}
2... Nf6 {[%clk 0:04:51.3]} 3. c4 {[%clk 0:04:56.8]} 3... Bc5 {[%clk 0:04:47.3]}
4. Nc3 {[%clk 0:04:55.8]} 4... Nc6 {[%clk 0:04:36.6]} 5. Nf3 {[%clk 0:04:52.6]}
5... O-O {[%clk 0:04:33]} 6. d3 {[%clk 0:04:51.1]} 6... d6 {[%clk 0:04:30.3]} 7.
O-O {[%clk 0:04:49.8]} 7... Bg4 {[%clk 0:04:24.7]} 8. a3 {[%clk 0:04:48.4]} 8...
Bxf3 {[%clk 0:04:21.2]} 9. Bxf3 {[%clk 0:04:48.3]} 9... h6 {[%clk 0:04:09.8]}
10. b4 {[%clk 0:04:46.7]} 10... Bb6 {[%clk 0:04:06.9]} 11. Bg2 {[%clk
0:04:44.3]} 11... a5 {[%clk 0:04:02.4]} 12. b5 {[%clk 0:04:41.8]} 12... Nd4
{[%clk 0:03:57.1]} 13. e3 {[%clk 0:04:40.7]} 13... Nf5 {[%clk 0:03:49.1]} 14.
Bxb7 {[%clk 0:04:39.2]} 14... Rb8 {[%clk 0:03:46.2]} 15. Bg2 {[%clk 0:04:38.8]}
15... d5 {[%clk 0:03:40.5]} 16. Nxd5 {[%clk 0:04:33.6]} 16... Nxd5 {[%clk
0:03:38.4]} 17. Bxd5 {[%clk 0:04:33.5]} 17... Qg5 {[%clk 0:03:30.2]} 18. e4
{[%clk 0:04:19.9]} 18... Bxf2+ {[%clk 0:03:09.6]} 19. Rxf2 {[%clk 0:04:14.3]}
19... Ne3 {[%clk 0:02:59]} 20. Bxe3 {[%clk 0:04:12.9]} 20... Qg4 {[%clk
0:02:54.8]} 21. Qxg4 {[%clk 0:04:10.8]} 1-0